Cogmind - Beta 13 @@@ ROGUE MODE // 2024.03.31 @ 13:26:56 Player: Tech Result: Destroyed by SL-0BN(R) with Subdweller Beam Cannon Performance ------------- Evolutions (0) 0 Regions Visited (2) 400 Robots Destroyed (20) 100 Value Destroyed (494) 494 Prototype IDs (0) 0 Alien Tech Used (0) 0 Bonus (0) 0 TOTAL SCORE: 994 Bonus ------- None Cogmind --------- Core Integrity 0/250 Matter 261/300 Energy 125/125 System Corruption 1% Temperature Cool (9) Movement Hovering (120) Ox1 Location -10/Subcaves Parts ------- > --- POWER (1) -------- Light Ion Engine > --- PROPULSION (2) --- Hover Unit > --- UTILITY (2) ------ (None) > --- WEAPON (2) ------- Rocket Launcher Rocket Launcher > --- INVENTORY (5) ---- Ion Engine Mini Grenade Launcher Mini Grenade Launcher Peak State ------------ > --- POWER ------------ Light Ion Engine > --- PROPULSION ------- Hover Unit Hover Unit > --- UTILITY ---------- Scrap Shield > --- WEAPON ----------- Rocket Launcher Rocket Launcher > --- INVENTORY -------- Ion Engine Mini Grenade Launcher Mini Grenade Launcher [Rating: 11] Favorites ----------- Power Light Ion Engine Engine Light Ion Engine Propulsion Wheel Leg Aluminum Leg Wheel Wheel Hover Unit Hover Unit Flight Unit Flight Unit Utility Heat Sink Device Heat Sink Storage Small Matter Pod Protection Scrap Shield Weapon Assault Rifle Energy Gun Small Laser Energy Cannon Beam Cannon Ballistic Gun Assault Rifle Launcher Rocket Launcher Special Weapon Mining Laser Build | -11 -10 -10 ------- Run | Yrd Mat Sub Slots Evolved . | . . . Power . | . . . Propulsion . | . . . Utility . | . . . Weapon . | . . . Parts Attached 34 | 7 26 1 Power 6 | 1 5 . Engine 6 | 1 5 . Core . | . . . Reactor . | . . . Propulsion 10 | 2 8 . Treads . | . . . Leg 1 | . 1 . Wheel 4 | 2 2 . Hover 2 | . 2 . Flight 3 | . 3 . Utility 9 | 2 6 1 Device 6 | 1 5 . Storage 2 | 1 1 . Processor . | . . . Hackware . | . . . Protection 1 | . . 1 Artifact . | . . . Weapon 9 | 2 7 . Energy Gun 2 | . 2 . Energy Cannon 2 | . 2 . Ballistic Gun 2 | 2 . . Ballistic Cannon . | . . . Launcher 2 | . 2 . Special Weapon 1 | . 1 . Impact Weapon . | . . . Slashing Weapon . | . . . Piercing Weapon . | . . . Special Melee Weapon . | . . . Unidentified Prototypes . | . . . Parts Lost 7 | . 6 1 Power 1 | . 1 . Propulsion 4 | . 3 1 Utility 2 | . 2 . Weapon . | . . . Highest Loss Streak 4 | . 4 1 To Critical Strikes . | . . . Average Slot Usage (%) 81 | . 81 71 Engine 13 | . 13 14 Wheel 5 | . 6 . Hover 12 | . 11 28 Flight 7 | . 7 . Device 13 | . 15 . Storage 1 | . 1 . Energy Gun 7 | . 8 . Energy Cannon 5 | . 6 . Ballistic Gun 2 | . 2 . Launcher 9 | . 7 28 Naked Turns . | . . . Heaviest Build 20 | 9 20 11 Greatest Support 26 | 20 26 12 Greatest Overweight (x) 3 | . 3 . Average Overweight (x) . | . . . Largest Inventory Capacity 10 | 5 10 5 Average Capacity 5 | 5 5 5 Most Carried 6 | 4 6 3 Average Carried 2 | 3 2 3 Final Capacity 5 | 5 5 5 Final Carried 4 | 4 3 3 Class Distribution -------------------- 79% | Mutant 20% | Scavenger-Mutant Dominant Class ---------------- Mutant | -10/Materials Mutant | -10/Subcaves Resources | -11 -10 -10 ----------- Run | Yrd Mat Sub Matter Collected 570 | 347 208 15 Remotely . | . . . Salvage Created 624 | 64 487 73 Parts 41 | 5 29 7 Haulers Intercepted . | . . . Recyclers Shooed 2 | . 2 . Parts Field Recycled . | . . . Retrieved Matter . | . . . Parts Self-Destructed . | . . . Prevented . | . . . Kills | -11 -10 -10 ------- Run | Yrd Mat Sub Combat Hostiles Destroyed 15 | 1 11 3 Guns 5 | 1 4 . Cannons 7 | . 7 . AOE 3 | . . 3 Classes Destroyed 6 | 2 3 1 Worker 3 | 1 2 . Recycler 1 | . 1 . Operator 1 | . 1 . Swarmer 3 | . 3 . Grunt 9 | 1 8 . Subdweller 3 | . . 3 Best Kill Streak 6 | 1 6 3 Combat Bots Only 5 | 1 5 3 Max Kills in Single Turn 2 | 1 2 2 Gunslinging . | . . . Exploded 2 | . . 2 Melee . | . . . Uniques/NPCs Destroyed . | . . . Combat | -11 -10 -10 -------- Run | Yrd Mat Sub Hostile Shots Fired 112 | 12 90 10 Missed 34 | 5 27 2 Damage Taken 880 | 77 628 175 Core 256 | 21 164 71 Absorbed by Shields . | . . . Core Remaining (%) 91 | 91 . . Volleys Fired 57 | 10 45 2 Largest 2 | 2 2 2 Hottest 140 | 40 140 66 Shots Fired 112 | 20 88 4 Gun 60 | 20 40 . Cannon 46 | . 46 . Launcher 4 | . . 4 Special 2 | . 2 . Kinetic 26 | 20 6 . Thermal 82 | . 82 . Explosive 4 | . . 4 Electromagnetic . | . . . Robot Hit Streak 9 | 9 9 5 Robot Miss Streak 5 | 3 5 . Penetration Max . | . . . Secondary Targets 1 | . 1 . Max Gunslinging Chain 1 | . 1 . Shots Hit Robots 67 | 13 50 4 Core Hits 31 | 3 22 6 Critical Kills . | . . . Critical Parts Destroyed . | . . . Critical Strikes . | . . . Melee Attacks . | . . . Impact . | . . . Slashing . | . . . Piercing . | . . . Sneak Attacks . | . . . Combat Hostiles . | . . . Follow-up Attacks . | . . . Damage Inflicted 2268 | 177 783 1308 Guns 454 | 177 277 . Cannons 506 | . 506 . Explosions 1308 | . . 1308 Melee . | . . . Ramming . | . . . Kinetic 200 | 177 23 . Thermal 760 | . 760 . Explosive 1308 | . . 1308 Electromagnetic . | . . . Impact . | . . . Slashing . | . . . Piercing . | . . . Highest Corruption 1 | . 1 1 Average Corruption 1 | . 1 1 Corruption Purged . | . . . Corruption Blocked . | . . . Effects 2 | . 2 . Energy Discharges 1 | . 1 . Parts Rejected 1 | . 1 . Overload Shots . | . . . Overflow Damage 3 | . 3 . Projectiles 3 | . 3 . Explosions . | . . . Melee . | . . . Knockbacks . | . . . Impact . | . . . Kinetic . | . . . Secondary . | . . . Self-Inflicted Damage . | . . . Shots . | . . . Rammed . | . . . Targets Rammed . | . . . Kicked . | . . . Crushed . | . . . Highest Temperature 150 | . 150 . Average Temperature 45 | . 45 . Received Heat Transfer 306 | 42 237 27 Siege Activations . | . . . Robots Corrupted . | . . . Combat Hostiles . | . . . Parts Fried . | . . . Impact Corruptions . | . . . Robots Melted . | . . . Combat Hostiles . | . . . Parts Melted 2 | . 2 . Heat Transferred 1648 | . 1648 . Parts Sabotaged . | . . . Parts Stolen . | . . . Parts Stripped . | . . . Power Chain Reactions . | . . . Alert | -11 -10 -10 ------- Run | Yrd Mat Sub Peak Influence 250 | 25 250 . Initial 16 | . 16 . Average 74 | 15 99 . Maximum Alert Level 1 | . 1 . Low Security (%) 83 | 100 76 . Level 1 16 | . 23 . Level 2 . | . . . Level 3 . | . . . Level 4 . | . . . Level 5 . | . . . High Security . | . . . Max Security . | . . . Squads Dispatched 3 | . 3 . Investigation 2 | . 2 . Extermination . | . . . Reinforcement 1 | . 1 . Assault . | . . . Garrison . | . . . Intercept . | . . . Searches Triggered . | . . . Construction Impeded . | . . . Haulers Reinforced . | . . . Active Scanning Responses . | . . . Cargo Convoy Interrupts . | . . . Stealth | -11 -10 -10 --------- Run | Yrd Mat Sub Distress Signals 3 | . 3 . Communications Jammed . | . . . Distress Signals . | . . . Times Spotted 33 | 1 22 10 Peak Tracking Total 7 | 1 5 7 Tactical Retreats 2 | . 2 . Traps | -11 -10 -10 ------- Run | Yrd Mat Sub Traps Triggered 3 | . 3 . Indirectly . | . . . Trap Hack Attempts . | . . . Triggered . | . . . Disarmed . | . . . Reprogrammed . | . . . Reused . | . . . Traps Extracted . | . . . Installed . | . . . Triggered . | . . . Machines | -11 -10 -10 ---------- Run | Yrd Mat Sub Machines Disabled . | . . . Max in Single Turn . | . . . Machines Repaired . | . . . Machines Dismantled . | . . . Machines Sabotaged . | . . . Overloaded Fab Kills . | . . . Hacking | -11 -10 -10 --------- Run | Yrd Mat Sub Machines Accessed 7 | . 7 . Terminals 5 | . 5 . Fabricators . | . . . Repair Stations . | . . . Recycling Units 2 | . 2 . Scanalyzers . | . . . Garrison Access . | . . . Total Hacks 27 | . 27 . Successful 18 | . 18 . Failed 9 | . 9 . Catastrophic 1 | . 1 . Database Lockouts . | . . . Manual . | . . . Terminals 15 | . 15 . Fabricators . | . . . Repair Stations . | . . . Recycling Units 12 | . 12 . Scanalyzers . | . . . Garrison Access . | . . . Terminal Hacks 8 | . 8 . Record 2 | . 2 . Robot Analysis 1 | . 1 . Emergency Access Points 1 | . 1 . Alert Level 1 | . 1 . Unreport Threat 1 | . 1 . Dispatch Records 1 | . 1 . Reinforcement Status 1 | . 1 . Fabricator Hacks . | . . . Repair Station Hacks . | . . . Recycling Unit Hacks 10 | . 10 . Recycle Component 3 | . 3 . Process 2 | . 2 . Report Inventory 2 | . 2 . Retrieve Matter 1 | . 1 . Retrieve Components 2 | . 2 . Scanalyzer . | . . . Garrison Access Hacks . | . . . Unauthorized Hacks . | . . . Terminals . | . . . Fabricators . | . . . Repair Stations . | . . . Recycling Units . | . . . Scanalyzers . | . . . Garrison Access . | . . . Data Cores Recovered . | . . . Used . | . . . Hacking Detections 6 | . 6 . Full Trace Events 1 | . 1 . Feedback Events . | . . . Feedback Blocked . | . . . Robot Schematics Acquired . | . . . Robots Built . | . . . Authchips . | . . . Time . | . . . Total Robot Build Rating . | . . . Part Schematics Acquired . | . . . Parts Built . | . . . Authchips . | . . . Time . | . . . Total Part Build Rating . | . . . Parts Repaired . | . . . Time . | . . . Parts Recycled 3 | . 3 . Recycled Matter 35 | . 35 . Retrieved Matter 35 | . 35 . Retrieved Components 10 | . 10 . Parts Scanalyzed . | . . . Part Schematics Acquired . | . . . Parts Damaged . | . . . Bothacking | -11 -10 -10 ------------ Run | Yrd Mat Sub Used RIF Installer . | . . . Robots Hacked . | . . . Non-combat . | . . . Combat . | . . . Robot Hacks Applied . | . . . Relay Couplers Released . | . . . Fabnet Peak Effective % . | . . . Robots Rewired . | . . . Allies Hacked . | . . . Hacks Repelled . | . . . Allies | -11 -10 -10 -------- Run | Yrd Mat Sub Total Allies . | . . . Largest Group . | . . . Highest-Rated Group . | . . . Highest-Rated Ally . | . . . Total Orders . | . . . Ally Attacks . | . . . Total Damage . | . . . Kills . | . . . Allies Corrupted . | . . . Allies Melted . | . . . Intel | -11 -10 -10 ------- Run | Yrd Mat Sub Robot Analysis Total 1 | . 1 . Derelict Logs Recovered . | . . . Drone Launches . | . . . Drone Recoveries . | . . . Exploration | -11 -10 -10 ------------- Run | Yrd Mat Sub Turns Passed 1023 | 286 675 62 Spaces Moved 1130 | 310 721 99 Core 29 | 22 7 . Treads . | . . . Legs 10 | . 10 . Wheels 398 | 288 110 . Hover 377 | . 278 99 Flight 316 | . 316 . Fastest Speed 37 | 50 37 56 Average Speed 67 | 77 64 56 Slowest Speed 285 | 80 285 56 Overloaded Moves . | . . . Propulsion Burnouts . | . . . Robots Hopped 2 | . 2 . Cave-ins Triggered . | . . . Exploration Rate (%) 34 | 10 84 9 Regions Visited 2 Branch Regions 1 Pre-discovered Areas . | . . . Known Exits Taken . | . . . Unknown Exits Taken 2 | 1 1 . Scrap Searched 1 | . . 1 Spaces Dug . | . . . Terrain Destroyed 23 | . 2 21 Melee . | . . . Projectile 2 | . 2 . AOE 21 | . . 21 Terrain Rammed . | . . . Walls Destroyed . | . . . Machines Disabled . | . . . Actions | -11 -10 -10 --------- Run | Yrd Mat Sub Total 1275 | 331 841 103 Wait 6 | . 6 . Move 1124 | 309 716 99 Hop 2 | . 2 . Pick Up 19 | 5 14 . Fast Attach 24 | 6 17 1 Attach 9 | 1 8 . Detach 11 | . 11 . Swap 1 | . 1 . Drop 22 | . 21 1 Fire 57 | 10 45 2 Melee . | . . . Ram . | . . . Kick . | . . . Crush . | . . . Escape Stasis . | . . . Rewire . | . . . Trap . | . . . Miscellaneous . | . . . Route ------- -11/Scrapyard -10/Materials (discovered 4 exits: [*Mat] / [*Min x2] / [*Sub]) -10/Subcaves History --------- Turn | Location | Event 2 | -11/Scrapyard | Met Revision 17 86 | -11/Scrapyard | Discovered new exit (range 8) 287 | -11/Scrapyard | Entered Materials 287 | -10/Materials | Discovered new exit (range 16) 314 | -10/Materials | Build established: Mutant 446 | -10/Materials | Discovered new exit (range 7) 516 | -10/Materials | Lost 4 parts (1p2n1u) 573 | -10/Materials | Discovered new exit (range 16) 614 | -10/Materials | Discovered new exit (range 4) 681 | -10/Materials | Core integrity fell below 50% 962 | -10/Materials | Entered Subcaves 1020 | -10/Subcaves | Ambushed by swarm of Subdwellers 1020 | -10/Subcaves | Ambushed by Subdwellers from Twisted Machinery 1020 | -10/Subcaves | Ambushed by Subdwellers from Twisted Machinery 1020 | -10/Subcaves | Ambushed by Subdwellers from Twisted Machinery 1023 | -10/Subcaves | Ambushed by Subdwellers from Twisted Machinery 1023 | -10/Subcaves | Ambushed by Subdwellers from Twisted Machinery 1024 | -10/Subcaves | Core integrity fell below 20% 1024 | -10/Subcaves | Destroyed by SL-0BN(R) with Subdweller Beam Cannon Last Messages --------------- Searching scrap... Found Sub. Machine Gun. Found Sub. Monowheel. Found 26 Matter. Acquired 15 matter. Subatomizers dissect the Sub. Machine Gun. A mess of Twisted Machinery falls from the cavern ceiling. OT-ZY5(R) comes tumbling into view. IF-PK2(R) angrily emerges from the Twisted Machinery. Z8-H1A(R) angrily emerges from the Twisted Machinery. P5-8XL(R) angrily emerges from the Twisted Machinery. DK-KXY(R) destroyed. Hover Unit destroyed. KI-CRD(R) emerges from the Twisted Machinery. MZ-GUH(g): "Sorry we're late! Had another grouchy Sub to deal with. Who's the new fellow?" P5-8XL(R) destroyed. 07-XUG(R) angrily emerges from the Twisted Machinery. RV-SRD(R) angrily emerges from the Twisted Machinery. RV-SRD(R) destroyed. 9G-2NC(h): "The Subs are coming!" Map ----- +----------------------------------------------------+ | ?????????????????????????????????????????????????? | | ?????????????????????????????????????????????????? | | ?????????????????????????????????????????????????? | | ?????????????????????????????????????????????????? | | ?????????????????????????????????????????????????? | | ?????????????????????????????????????????????????? | | ?????????????????????????????????????????????????? | | ?????????????????????????????????????????????????? | | ?????????????????????????????????????????????????? | | ?????????????????????????????????????????????????? | | ?????????????????????????????????????????????????? | | ?????????????????????????????????????????????????? | | ?????????????????????????????????????????????????? | | ?????????????????????????????????????????????????? | | ?????????????????????????????????????????????????? | | ?????????????????????????????###?????????????????? | | ????????????????????????????## ##????????######### | | ??????????????????????????### #?????#### | | ???????????????????????#### #?????## | | ????????????#?????????## #####?# ? | | ????????????# ???????# ##?# ???# | | ???????????# #????# #??? #??## | | ???????????# &%=R??## h #????# ##?# | | ?????????? &&&R ## #### ###### ### | | ?????????? R%RR ##??## ## | | ?????????? RR @ #????### | | ?????????????# R #?????# %= | | ??????????# # R #????# ## [ | | ??????????????# #???# ###### | | ??????????????## ### #???# #????#### | | ???????????????????#### ## #? ##???????## ## | | ??????????????????????# #? ##?????????#### | | ??????????????????????### ? #?????? ??????## | | ????????????????????????## ? #???# ???## | | ??????????????????????????# g???# ## | | ???????????????????????????## ? | | ????????????????????????????## ### % | | ?????????????????????????????##???#?? ## | | ??????????????????????????????????????? ??? | | ???????????????????????????????????????# ???? | | ????????????????????????????????????????# ?????? | | ?????????????????????????????????????????##??????# | | ?????????????????????????????????????????????????# | | ?????????????????????????????????????????????????# | | ?????????????????????????????????????????????????? | | ?????????????????????????????????????????????????? | | ?????????????????????????????????????????????????? | | ?????????????????????????????????????????????????? | | ?????????????????????????????????????????????????? | | ?????????????????????????????????????????????????? | +----------------------------------------------------+ Best States ------------- Heat Dissipation 35 Energy Generation 10 Energy Capacity 250 Matter Stores 350 Matter Capacity 350 Sight Range 16 Terrain Scan Range 16 Terrain Scan Density 10 Evasion (%) 62 Item Schematics ----------------- None Robot Schematics ------------------ None Fabricated ------------ Nothing Alien Tech Used ----------------- None Achievements -------------- Everything Is Under Control Storm Trooper Challenges ------------ None Game ------ Seed BattleCorruptionInterpreter Manual? 0 Play Time 00:38:34 Cumulative 1.0 hours Start 2024.03.31 @ 12:48:24 End 2024.03.31 @ 13:26:56 Sessions 1 Manual Loads 0 Difficulty Rogue Special Mode None Game No. 2 Rogue 2 Adventurer 0 Explorer 0 Win Type - Total 0 Types 0/0/0/0/0/0/0/0/0 Lore% 1 Gallery% 2 Achievement% 1 Wizard Run 0 Options --------- Layout 1 ASCII 0 Keyboard 1 Movement Numpad Keybinds 0 Fullscreen 1 Font 32/SmallcapsGlow Map View 130x35 Zoom Use 0% Tactical HUD 0 Map Filters NONE Filters NONE Steam 1 RUN: 16834f92-cf35-438d-81b6-001ae20db1dd